fUSD/lending_fUSD_20240527
["ID","MTS","AMOUNT","RATE_DAILY","PERIOD"]
[328042765,1716813032271,-213.68,0.00028951,2]
[328042766,1716813032280,-258.61395977,0.00029587,2]
[328042767,1716813032289,-150.22983098,0.000299,2]
[328042768,1716813032300,-4065.37197251,0.0003,2]
[328042769,1716813032311,-655.60712406,0.0003,2]
[328042770,1716813032332,-2253.76645182,0.0003,2]
[328042771,1716813032344,-23025.25445161,0.0003,2]
[328042772,1716813032353,-3407.97766124,0.0003,2]
[328042773,1716813032364,-23744.89209576,0.0003,2]
[328042774,1716813032384,-670.28116184,0.0003,2]
[328042775,1716813032394,-561.51132701,0.0003,2]
[328042776,1716813032427,-1615.33775415,0.0003,2]
[328042777,1716813032436,-378.55143929,0.0003,2]
[328042778,1716813032447,-528.592,0.0003,2]
[328042779,1716813032459,-1114.24720997,0.0003,2]
[328042780,1716813032520,-1047.58741957,0.0003,2]
[328042783,1716813032544,-26931.02193117,0.0003,2]
[328042784,1716813032555,-30000.0,0.0003,2]
[328042786,1716813032565,-30000.0,0.0003,2]
[328042787,1716813032574,-9511.705257,0.0003,2]
[328042789,1716813032584,-200.02,0.00030584,2]
[328042791,1716813032594,-996.05,0.00030616,2]
[328042792,1716813032604,-250.0,0.00030652,2]
[328042794,1716813032614,-150.0,0.00030663,2]
[328042795,1716813032623,-453.27407036,0.00031,4]
[328042796,1716813032633,-409.28043729,0.00031,2]
[328042797,1716813032643,-150.0,0.00031196,2]
[328042798,1716813032653,-23880.0,0.000312,2]
[328042799,1716813032662,-213.68,0.00031214,2]
[328042800,1716813032672,-214.27,0.00031357,2]
[328042801,1716813032682,-250.0,0.0003136,2]
[328042802,1716813032691,-171.21,0.00031483,2]
[328042803,1716813032701,-150.22983098,0.00031549,10]
[328042804,1716813032710,-177.4,0.0003159,2]
[328042805,1716813032720,-160.52187873,0.00032288,7]
[328042806,1716813032729,-200.0,0.0003235,120]
[328042807,1716813032741,-150.0,0.00032424,2]
[328042808,1716813032751,-4272.61,0.0003245,3]
[328042809,1716813032761,-150.0,0.00032524,2]
[328042810,1716813032770,-339.17922691,0.00032545,4]
[328042811,1716813032780,-500.0,0.00032613,2]
[328042812,1716813032790,-945.91438701,0.00032774,2]
[328042813,1716813032800,-1953.0,0.00032776,2]
[328042814,1716813032810,-215.0138,0.00032776,2]
[328042815,1716813032820,-17781.9431,0.00032776,2]
[328042816,1716813032830,-48347.7387,0.00032776,2]
[328042817,1716813032840,-1044.30618087,0.00032776,4]
[328042818,1716813032850,-497.71076304,0.00032776,6]
[328042819,1716813032859,-2024.4688803,0.00032776,2]
[328042820,1716813032869,-327.55958716,0.00032776,2]
[328042821,1716813032878,-156.48510114,0.00032776,2]
[328042822,1716813032888,-179.43670754,0.00032776,2]
[328042823,1716813032898,-150.0,0.000328,7]
[328042824,1716813032908,-1044.30618083,0.00032814,4]
[328042825,1716813032917,-945.91438696,0.00032835,2]
[328042826,1716813032927,-1044.30618083,0.00032853,4]
[328042827,1716813032937,-188.11098371,0.00032866,2]
[328042828,1716813032946,-5013.8348395,0.00032868,2]
[328042829,1716813032959,-4888.4898682,0.00032868,2]
[328042830,1716813032969,-2063.8434769,0.00032868,2]
[328042831,1716813032979,-848.6401436,0.00032868,2]
[328042832,1716813032989,-2242.89,0.0003287,30]
[328042833,1716813032999,-162.76290291,0.00032874,4]
[328042834,1716813033009,-827.48757697,0.00032874,4]
[328042835,1716813033019,-450.38671635,0.00032874,4]
[328042836,1716813033029,-155.47561881,0.00032874,4]
[328042837,1716813033041,-281.81474394,0.00032874,4]
[328042838,1716813033051,-204.78051809,0.00032874,4]
[328042839,1716813033061,-724.95541199,0.00032874,4]
[328042840,1716813033072,-348.65317629,0.00032874,4]
[328042841,1716813033081,-1038.72907891,0.00032874,4]
[328042842,1716813033092,-204.60375302,0.00032874,4]
[328042843,1716813033102,-20134.06226472,0.00032874,4]
[328042844,1716813033111,-560.85470699,0.00032874,4]
[328042845,1716813033121,-883.23060995,0.00032874,4]
[328042846,1716813033131,-516.94245882,0.00032874,4]
[328042847,1716813033141,-156.46048382,0.00032874,4]
[328042848,1716813033151,-2588.59340397,0.00032875,10]
[328042849,1716813033164,-193.50479953,0.00032875,2]
[328042850,1716813033174,-4918.25734294,0.00032875,2]
[328042851,1716813033183,-174.0,0.00032876,5]
[328042852,1716813033194,-685.02584944,0.00032876,4]
[328042853,1716813033203,-151.0,0.00032876,7]
[328042854,1716813033213,-166.0,0.00032876,7]
[328042855,1716813033223,-500.0,0.00032876,7]
[328042856,1716813033232,-500.0,0.00032876,7]
[328042857,1716813033242,-500.0,0.00032876,7]
[328042858,1716813033252,-500.0,0.00032876,7]
[328042859,1716813033263,-500.0,0.00032876,7]
[328042860,1716813033273,-500.0,0.00032876,7]
[328042861,1716813033283,-500.0,0.00032876,7]
[328042862,1716813033293,-500.0,0.00032876,7]
[328042863,1716813033304,-500.0,0.00032876,7]
[328042864,1716813033314,-500.0,0.00032876,7]
[328042865,1716813033323,-500.0,0.00032876,7]
[328042866,1716813033334,-500.0,0.00032876,7]
[328042867,1716813033344,-500.0,0.00032876,7]
[328042868,1716813033353,-500.0,0.00032876,7]
[328042869,1716813033363,-500.0,0.00032876,7]
[328042870,1716813033372,-500.0,0.00032876,7]
[328042871,1716813033382,-500.0,0.00032876,7]
[328042872,1716813033392,-500.0,0.00032876,7]
[328042873,1716813033401,-500.0,0.00032876,7]
[328042874,1716813033413,-591.93134303,0.00032876,7]
[328042875,1716813033423,-500.0,0.00032876,7]
[328042876,1716813033433,-500.0,0.00032876,7]
[328042877,1716813033443,-500.0,0.00032876,7]
[328042878,1716813033453,-500.0,0.00032876,7]
[328042879,1716813033463,-500.0,0.00032876,7]
[328042880,1716813033473,-421.35144044,0.00032876,7]
[328042881,1716813033483,-500.0,0.00032876,7]
[328042882,1716813033492,-500.0,0.00032876,7]
[328042883,1716813033502,-500.0,0.00032876,7]
[328042884,1716813033511,-500.0,0.00032876,7]
[328042885,1716813033521,-564.82,0.00032876,7]
[328042886,1716813033530,-500.0,0.00032876,7]
[328042887,1716813033540,-500.0,0.00032876,7]
[328042888,1716813033549,-500.0,0.00032876,7]
[328042889,1716813033559,-500.0,0.00032876,7]
[328042890,1716813033569,-559.83,0.00032876,7]
[328042891,1716813033578,-559.83,0.00032876,7]
[328042892,1716813033588,-559.83,0.00032876,7]
[328042893,1716813033598,-559.83,0.00032876,7]
[328042894,1716813033608,-559.83,0.00032876,7]
[328042895,1716813033619,-559.83,0.00032876,7]
[328042896,1716813033629,-559.83,0.00032876,7]
[328042897,1716813033639,-559.83,0.00032876,7]
[328042898,1716813033649,-500.0,0.00032876,7]
[328042899,1716813033659,-559.83,0.00032876,7]
[328042900,1716813033668,-559.83,0.00032876,7]
[328042901,1716813033677,-559.83,0.00032876,7]
[328042902,1716813033686,-559.83,0.00032876,7]
[328042903,1716813033696,-559.83,0.00032876,7]
[328042904,1716813033705,-559.83,0.00032876,7]
[328042905,1716813033714,-559.83,0.00032876,7]
[328042906,1716813033724,-559.83,0.00032876,7]
[328042907,1716813033733,-559.83,0.00032876,7]
[328042908,1716813033743,-559.83,0.00032876,7]
[328042909,1716813033753,-559.83,0.00032876,7]
[328042910,1716813033762,-559.83,0.00032876,7]
[328042911,1716813033773,-559.83,0.00032876,7]
[328042912,1716813033783,-559.83,0.00032876,7]
[328042913,1716813033792,-559.83,0.00032876,7]
[328042914,1716813033802,-560.01850636,0.00032876,7]
[328042915,1716813033811,-500.0,0.00032876,7]
[328042916,1716813033821,-500.0,0.00032876,7]
[328042917,1716813033831,-500.0,0.00032876,7]
[328042918,1716813033841,-500.22,0.00032876,7]
[328042919,1716813033850,-224.96115051,0.00032876,7]
[328042920,1716813033860,-500.0,0.00032876,7]
[328042921,1716813033869,-500.0,0.00032876,7]
[328042922,1716813033879,-529.56,0.00032876,7]
[328042923,1716813033888,-500.0,0.00032876,7]
[328042924,1716813033898,-500.0,0.00032876,7]
[328042925,1716813033907,-535.21323206,0.00032876,7]
[328042926,1716813033917,-168.57745051,0.00032876,7]
[328042927,1716813033927,-500.0,0.00032876,7]
[328042928,1716813033936,-500.0,0.00032876,7]
[328042929,1716813033946,-500.0,0.00032876,7]
[328042930,1716813033958,-500.0,0.00032876,7]
[328042931,1716813033968,-500.0,0.00032876,7]
[328042932,1716813033977,-500.0,0.00032876,7]
[328042933,1716813033986,-500.0,0.00032876,7]
[328042934,1716813033998,-500.0,0.00032876,7]
[328042935,1716813034007,-500.0,0.00032876,7]
[328042936,1716813034016,-500.0,0.00032876,7]
[328042937,1716813034027,-500.0,0.00032876,7]
[328042938,1716813034037,-500.0,0.00032876,7]
[328042939,1716813034047,-500.0,0.00032876,7]
[328042940,1716813034059,-500.0,0.00032876,7]
[328042941,1716813034068,-500.0,0.00032876,7]
[328042942,1716813034077,-500.0,0.00032876,7]
[328042943,1716813034087,-480.38,0.00032876,7]
[328042944,1716813034096,-500.0,0.00032876,7]
[328042945,1716813034105,-500.0,0.00032876,7]
[328042946,1716813034114,-500.0,0.00032876,7]
[328042947,1716813034125,-500.0,0.00032876,7]
[328042948,1716813034134,-500.0,0.00032876,7]
[328042949,1716813034143,-500.0,0.00032876,7]
[328042950,1716813034156,-500.0,0.00032876,7]
[328042951,1716813034165,-500.0,0.00032876,7]
[328042952,1716813034175,-500.0,0.00032876,7]
[328042953,1716813034184,-500.0,0.00032876,7]
[328042954,1716813034193,-500.0,0.00032876,7]
[328042955,1716813034203,-500.0,0.00032876,7]
[328042956,1716813034212,-500.0,0.00032876,7]
[328042957,1716813034222,-500.0,0.00032876,7]
[328042958,1716813034231,-500.0,0.00032876,7]
[328042959,1716813034241,-500.0,0.00032876,7]
[328042960,1716813034250,-517.35858663,0.00032876,7]
[328042961,1716813034260,-500.0,0.00032876,7]
[328042962,1716813034269,-500.0,0.00032876,7]
[328042963,1716813034279,-500.0,0.00032876,7]
[328042964,1716813034288,-500.0,0.00032876,7]
[328042965,1716813034298,-500.0,0.00032876,7]
[328042966,1716813034308,-500.0,0.00032876,7]
[328042967,1716813034317,-500.0,0.00032876,7]
[328042968,1716813034328,-473.45,0.00032876,7]
[328042969,1716813034338,-1262.19,0.00032876,7]
[328042970,1716813034348,-1054.08947292,0.00032876,7]
[328042996,1716813038268,-250.80273951,0.000299,2]
[328042997,1716813038278,-235.09746492,0.00030266,10]
[328042998,1716813038290,-15.70527455,0.00030266,10]
[328042999,1716813038301,-570.18901416,0.00032774,11]
[328043000,1716813038351,-971.86493752,0.00032774,11]
[328043001,1716813038427,-820.5999,0.00032774,11]
[328043002,1716813038439,-6846.2,0.00032774,11]
[328043003,1716813038577,-729.5377189,0.00032774,11]
[328043018,1716813040832,-451.22592,0.00032774,11]
[328043019,1716813041533,-3141.49994,0.00032774,11]
[328043020,1716813041676,-635.30050799,0.00032774,11]
[328043023,1716813041687,-419.42999969,0.00032774,11]
[328043031,1716813043279,-250.80273947,0.00030633,10]
[328043033,1716813043289,-7335.98226193,0.00032774,11]
[328043035,1716813043300,-1600.25245192,0.00032774,11]
[328043036,1716813043499,-3631.16564519,0.00032774,11]
[328043062,1716813044314,-9171.53718,0.00032774,11]
[328043063,1716813044332,-3925.1256314,0.00032774,11]
[328043064,1716813044343,-2915.07969939,0.00032774,11]
[328043065,1716813044355,-2684.28735737,0.00032774,11]
[328043068,1716813046265,-2443.74886231,0.00032774,11]
[328043069,1716813046419,-5848.13465686,0.00032774,11]
[328043070,1716813046430,-3741.99999997,0.00032774,11]
[328043071,1716813046442,-2588.70656164,0.00032774,11]
[328043078,1716813225151,1840.62,0.00013,2]
[328043079,1716813225177,2000.0,0.00013,2]
[328043080,1716813225211,709479.45595164,0.00013,2]
[328043081,1716813225240,499816.24771191,0.00013,2]
[328043082,1716813225270,744964.57048677,0.00013,2]
[328043086,1716813398892,26522.54653424,0.00013,2]
[328043088,1716813417048,151.0,0.00013,2]
[328043089,1716813417496,151.0,0.00013,2]
[328043090,1716813417894,151.0,0.00013,2]
[328043091,1716813418289,151.0,0.00013,2]
[328043092,1716813418728,151.0,0.00013,2]
[328043093,1716813419103,151.0,0.00013,2]
[328043094,1716813419444,191.0,0.00013,2]
[328043097,1716813904804,227.04273231,0.00013,2]
[328043098,1716813935127,-242.37,0.00016866,2]
[328043099,1716813935148,-747.4568,0.00017125,2]
[328043100,1716813935168,-7.99201377,0.00017225,2]
[328043101,1716813998267,1894.29473063,0.0003,120]
[328043102,1716814023991,162.88,0.00013973,2]
[328043103,1716814044101,-241.15630026,0.00017225,2]
[328043126,1716814231824,-73.51667928,0.00017225,2]
[328043127,1716814231836,-242.37,0.0001913,2]
[328043128,1716814231845,-242.37,0.00021394,2]
[328043130,1716814231855,-242.37,0.00023658,2]
[328043132,1716814231864,-1805.0,0.000248,3]
[328043134,1716814231874,-5196.67,0.000248,2]
[328043136,1716814231884,-242.37,0.00025922,2]
[328043138,1716814231894,-242.37,0.00028185,2]
[328043140,1716814231903,-237.18,0.00029212,2]
[328043142,1716814231913,-250.0,0.00029429,2]
[328043144,1716814231922,-160.01,0.00029583,2]
[328043146,1716814231931,-423.7807094,0.00029587,2]
[328043148,1716814231941,-13779.03,0.00029711,2]
[328043150,1716814231950,-2651.0,0.000299,7]
[328043152,1716814231960,-250.0,0.00030392,2]
[328043154,1716814231970,-242.37,0.00030449,2]
[328043155,1716814231979,-371.42,0.00031265,2]
[328043158,1716814231988,-520.21,0.00031285,2]
[328043159,1716814231998,-1518.0,0.00031337,2]
[328043160,1716814232007,-177.4,0.00031555,2]
[328043161,1716814232017,-170.49,0.00031729,2]
[328043162,1716814232027,-236.71,0.00032079,120]
[328043163,1716814232036,-350.39145,0.0003255,2]
[328043164,1716814232046,-175.56191771,0.000326,10]
[328043165,1716814232056,-2500.0,0.000326,2]
[328043166,1716814232065,-150.22983098,0.000326,10]
[328043167,1716814232074,-7462.96,0.00032643,5]
[328043168,1716814232083,-175.56191762,0.00032665,10]
[328043169,1716814232093,-709.43579022,0.00032676,2]
[328043170,1716814232103,-164800.28163952,0.000327,7]
[328043184,1716814237417,-560.56292369,0.000327,7]
[328043187,1716814237431,-37866.8533997,0.000327,7]
[328043188,1716814237544,-3912.70000001,0.000327,7]
[328043206,1716814237953,-3820.74839673,0.000327,7]
[328043278,1716814240262,-5345.24946,0.000327,7]
[328043279,1716814240274,-395.55636215,0.000327,7]
[328043281,1716814240303,-918.9663104,0.000327,7]
[328043282,1716814240346,-1010.47999975,0.000327,7]
[328043283,1716814241238,-3518.79617,0.000327,7]
[328043284,1716814241250,-1876.742,0.000327,7]
[328043285,1716814241262,-24498.95,0.000327,7]
[328043286,1716814241364,-453.71,0.000327,7]
[328043287,1716814241376,-1020.40333805,0.000327,7]
[328043288,1716814241387,-155.63070279,0.000327,5]
[328043289,1716814241396,-242.37,0.00032713,2]
[328043291,1716814241406,-175.56191762,0.0003273,10]
[328043293,1716814241418,-709.43579022,0.00032749,2]
[328043295,1716814241428,-1000.0,0.00032776,2]
[328043297,1716814241437,-7500.0,0.00032776,2]
[328043298,1716814241446,-10000.0,0.00032776,2]
[328043299,1716814241455,-1024.51272935,0.00032776,4]
[328043300,1716814241464,-325.32338628,0.00032776,2]
[328043301,1716814241473,-1436.85077087,0.00032776,2]
[328043302,1716814241482,-101.12328482,0.00032795,10]
[328043314,1716814242571,-74.4386328,0.00032795,10]
[328043316,1716814242580,-1024.51272926,0.00032816,4]
[328043318,1716814242590,-709.43579022,0.00032821,2]
[328043320,1716814242599,-164.99518384,0.00032849,7]
[328043321,1716814242608,-150.0,0.00032849,7]
[328043322,1716814242617,-1024.51272926,0.00032856,4]
[328043323,1716814242627,-175.56191762,0.0003286,10]
[328043324,1716814242636,-396.543019,0.00032869,2]
[328043325,1716814242648,-59.71875977,0.00032869,2]
[328043326,1716814242659,-409.95134111,0.0003287,2]
[328043327,1716814242670,-528.90933,0.0003287,2]
[328043328,1716814242819,-4285.90173269,0.0003287,2]
[328043329,1716814242829,-3870.6894483,0.0003287,2]
[328043330,1716814242839,-671.1079835,0.00032873,2]
[328043331,1716814242852,-401.8989479,0.00032874,2]
[328043332,1716814242861,-237.60036109,0.00032874,4]
[328043333,1716814242871,-486.23552786,0.00032874,4]
[328043334,1716814242880,-241.15432834,0.00032874,4]
[328043335,1716814242890,-301.82579825,0.00032875,4]
[328043336,1716814242899,-365.03822143,0.00032875,2]
[328043337,1716814242909,-57723.54765064,0.00032876,11]
[328043338,1716814242921,-260.70417441,0.00032876,11]
[328043339,1716814242932,-5054.5752389,0.00032876,11]
[328043340,1716814242944,-801.0815854,0.00032876,11]
[328043341,1716814242955,-981.30311709,0.00032876,11]
[328043342,1716814243036,-2871.58155586,0.00032876,11]
[328043380,1716814245587,-1583.0242,0.00032876,11]
[328043383,1716814245601,-783.12,0.00032876,11]
[328043396,1716814245732,-14991.74337432,0.00032876,11]
[328043398,1716814245746,-54758.97384301,0.00032876,11]
[328043400,1716814245757,-1000.0,0.00032876,2]
[328043403,1716814245769,-1000.0,0.00032876,2]
[328043405,1716814245780,-1000.0,0.00032876,2]
[328043407,1716814245790,-1000.0,0.00032876,2]
[328043409,1716814245800,-1149.0,0.00032876,2]
[328043410,1716814245810,-500.0,0.00032876,7]
[328043413,1716814245820,-500.0,0.00032876,7]
[328043415,1716814245832,-500.0,0.00032876,7]
[328043416,1716814245842,-500.0,0.00032876,7]
[328043418,1716814245853,-500.0,0.00032876,7]
[328043420,1716814245862,-500.0,0.00032876,7]
[328043422,1716814245871,-500.0,0.00032876,7]
[328043424,1716814245881,-500.0,0.00032876,7]
[328043425,1716814245892,-507.65627131,0.00032876,7]
[328043427,1716814245901,-500.0,0.00032876,7]
[328043429,1716814245911,-500.0,0.00032876,7]
[328043431,1716814245921,-500.0,0.00032876,7]
[328043432,1716814245931,-500.0,0.00032876,7]
[328043434,1716814245940,-500.0,0.00032876,7]
[328043436,1716814245950,-500.0,0.00032876,7]
[328043437,1716814245959,-500.0,0.00032876,7]
[328043439,1716814245970,-500.0,0.00032876,7]
[328043441,1716814245980,-500.0,0.00032876,7]
[328043442,1716814245990,-500.0,0.00032876,7]
[328043444,1716814245999,-500.0,0.00032876,7]
[328043446,1716814246009,-500.0,0.00032876,7]
[328043447,1716814246019,-500.0,0.00032876,7]
[328043449,1716814246028,-500.0,0.00032876,7]
[328043451,1716814246037,-630.29360761,0.00032876,7]
[328043452,1716814246047,-628.51,0.00032876,7]
[328043454,1716814246056,-500.0,0.00032876,7]
[328043456,1716814246066,-276.30967053,0.00032876,7]
[328043457,1716814246075,-500.0,0.00032876,7]
[328043459,1716814246085,-500.0,0.00032876,7]
[328043460,1716814246094,-500.0,0.00032876,7]
[328043462,1716814246104,-500.0,0.00032876,7]
[328043464,1716814246113,-500.0,0.00032876,7]
[328043465,1716814246122,-500.0,0.00032876,7]
[328043468,1716814246133,-500.0,0.00032876,7]
[328043469,1716814246143,-500.0,0.00032876,7]
[328043471,1716814246152,-500.0,0.00032876,7]
[328043473,1716814246161,-500.0,0.00032876,7]
[328043475,1716814246170,-500.0,0.00032876,7]
[328043477,1716814246180,-264.89148284,0.00032876,7]
[328043478,1716814246189,-627.65257385,0.00032876,7]
[328043479,1716814246199,-500.0,0.00032876,7]
[328043481,1716814246208,-500.0,0.00032876,7]
[328043482,1716814246217,-500.0,0.00032876,7]
[328043483,1716814246226,-482.50679633,0.00032876,7]
[328043484,1716814246236,-535.52,0.00032876,7]
[328043485,1716814246246,-510.47839879,0.00032876,7]
[328043486,1716814246256,-500.0,0.00032876,7]
[328043487,1716814246266,-500.0,0.00032876,7]
[328043488,1716814246276,-500.0,0.00032876,7]
[328043489,1716814246285,-500.0,0.00032876,7]
[328043490,1716814246294,-507.36245059,0.00032876,7]
[328043491,1716814246303,-500.0,0.00032876,7]
[328043492,1716814246312,-500.0,0.00032876,7]
[328043493,1716814246321,-500.0,0.00032876,7]
[328043494,1716814246331,-500.0,0.00032876,7]
[328043495,1716814246343,-500.0,0.00032876,7]
[328043496,1716814246354,-500.0,0.00032876,7]
[328043497,1716814246362,-500.0,0.00032876,7]
[328043498,1716814246374,-500.0,0.00032876,7]
[328043499,1716814246383,-500.0,0.00032876,7]
[328043500,1716814246392,-500.0,0.00032876,7]
[328043501,1716814246401,-500.0,0.00032876,7]
[328043502,1716814246412,-500.0,0.00032876,7]
[328043503,1716814246422,-506.04495401,0.00032876,7]
[328043504,1716814246432,-500.0,0.00032876,7]
[328043505,1716814246441,-500.0,0.00032876,7]
[328043506,1716814246450,-287.2911557,0.00032876,7]
[328043507,1716814246459,-578.35,0.00032876,7]
[328043508,1716814246468,-578.35,0.00032876,7]
[328043509,1716814246478,-578.35,0.00032876,7]
[328043510,1716814246488,-764.7,0.00032876,7]
[328043511,1716814246498,-578.35,0.00032876,7]
[328043512,1716814246508,-764.7,0.00032876,7]
[328043513,1716814246517,-764.7,0.00032876,7]
[328043514,1716814246527,-578.35,0.00032876,7]
[328043515,1716814246537,-764.7,0.00032876,7]
[328043516,1716814246547,-578.35,0.00032876,7]
[328043517,1716814246556,-764.7,0.00032876,7]
[328043518,1716814246566,-578.35,0.00032876,7]
[328043519,1716814246575,-578.35,0.00032876,7]
[328043520,1716814246585,-764.7,0.00032876,7]
[328043521,1716814246594,-578.35,0.00032876,7]
[328043522,1716814246604,-764.7,0.00032876,7]
[328043523,1716814246613,-500.0,0.00032876,7]
[328043524,1716814246623,-764.7,0.00032876,7]
[328043525,1716814246632,-163.77498202,0.00032876,7]
[328043526,1716814246642,-764.7,0.00032876,7]
[328043527,1716814246651,-578.35,0.00032876,7]
[328043528,1716814246660,-764.7,0.00032876,7]
[328043529,1716814246670,-764.7,0.00032876,7]
[328043530,1716814246679,-578.35,0.00032876,7]
[328043531,1716814246688,-764.7,0.00032876,7]
[328043532,1716814246698,-578.35,0.00032876,7]
[328043533,1716814246708,-764.7,0.00032876,7]
[328043534,1716814246717,-578.35,0.00032876,7]
[328043535,1716814246727,-764.7,0.00032876,7]
[328043536,1716814246737,-578.35,0.00032876,7]
[328043537,1716814246747,-764.7,0.00032876,7]
[328043538,1716814246756,-764.7,0.00032876,7]
[328043539,1716814246766,-578.35,0.00032876,7]
[328043540,1716814246775,-764.7,0.00032876,7]
[328043541,1716814246785,-578.35,0.00032876,7]
[328043542,1716814246794,-764.7,0.00032876,7]
[328043543,1716814246804,-578.35,0.00032876,7]
[328043544,1716814246814,-764.7,0.00032876,7]
[328043545,1716814246824,-578.35,0.00032876,7]
[328043546,1716814246834,-764.7,0.00032876,7]
[328043547,1716814246843,-578.35,0.00032876,7]
[328043548,1716814246853,-764.7,0.00032876,7]
[328043549,1716814246863,-764.7,0.00032876,7]
[328043550,1716814246872,-764.7,0.00032876,7]
[328043551,1716814246882,-500.0,0.00032876,7]
[328043552,1716814246892,-500.0,0.00032876,7]
[328043553,1716814246902,-500.0,0.00032876,7]
[328043554,1716814246911,-500.0,0.00032876,7]
[328043555,1716814246920,-249.82184412,0.00032876,7]
[328043556,1716814246930,-764.74283283,0.00032876,7]
[328043557,1716814246940,-513.21723866,0.00032876,7]
[328043558,1716814246949,-512.88637503,0.00032876,7]
[328043559,1716814246959,-500.0,0.00032876,7]
[328043560,1716814246969,-505.65868548,0.00032876,7]
[328043561,1716814246979,-526.67864029,0.00032876,7]
[328043562,1716814246989,-500.0,0.00032876,7]
[328043563,1716814246998,-500.0,0.00032876,7]
[328043564,1716814247009,-748.66,0.00032876,7]
[328043565,1716814247018,-748.66,0.00032876,7]
[328043566,1716814247027,-499.56940764,0.00032876,7]
[328043567,1716814247037,-748.66,0.00032876,7]
[328043568,1716814247046,-748.66,0.00032876,7]
[328043569,1716814247056,-748.66,0.00032876,7]
[328043570,1716814247065,-748.66,0.00032876,7]
[328043571,1716814247074,-748.66,0.00032876,7]
[328043572,1716814247083,-748.66,0.00032876,7]
[328043573,1716814247093,-748.66,0.00032876,7]
[328043574,1716814247103,-500.0,0.00032876,7]
[328043575,1716814247113,-748.66,0.00032876,7]
[328043576,1716814247122,-500.0,0.00032876,7]
[328043577,1716814247131,-748.66,0.00032876,7]
[328043578,1716814247140,-500.0,0.00032876,7]
[328043579,1716814247150,-748.66,0.00032876,7]
[328043580,1716814247159,-500.0,0.00032876,7]
[328043581,1716814247168,-748.66,0.00032876,7]
[328043582,1716814247178,-500.0,0.00032876,7]
[328043583,1716814247188,-748.66,0.00032876,7]
[328043584,1716814247197,-500.0,0.00032876,7]
[328043585,1716814247206,-748.66,0.00032876,7]
[328043586,1716814247216,-500.0,0.00032876,7]
[328043587,1716814247225,-748.66,0.00032876,7]
[328043588,1716814247234,-500.0,0.00032876,7]
[328043589,1716814247244,-748.66,0.00032876,7]
[328043590,1716814247253,-500.0,0.00032876,7]
[328043591,1716814247263,-748.66,0.00032876,7]
[328043592,1716814247274,-500.0,0.00032876,7]
[328043593,1716814247286,-748.66,0.00032876,7]
[328043594,1716814247295,-500.0,0.00032876,7]
[328043595,1716814247304,-500.0,0.00032876,7]
[328043596,1716814247313,-500.0,0.00032876,7]
[328043597,1716814247322,-500.0,0.00032876,7]
[328043598,1716814247331,-349.67813827,0.00032876,7]
[328043599,1716814247344,-500.0,0.00032876,7]
[328043600,1716814247354,-500.0,0.00032876,7]
[328043601,1716814247363,-500.0,0.00032876,7]
[328043602,1716814247372,-298.56,0.00032876,7]
[328043603,1716814247382,-511.6340516,0.00032876,7]
[328043604,1716814247391,-992.48,0.00032876,7]
[328043605,1716814247401,-500.0,0.00032876,7]
[328043606,1716814247410,-992.48,0.00032876,7]